fUST/lending_fUST_20240818
["ID","MTS","AMOUNT","RATE_DAILY","PERIOD"]
[335198530,1723973439285,-500.0,0.00016438,2]
[335198531,1723973439294,-279.91221642,0.00016438,2]
[335198532,1723973439304,-500.0,0.00016438,2]
[335198533,1723973439314,-500.0,0.00016438,2]
[335198534,1723973439323,-500.0,0.00016438,2]
[335198535,1723973439536,-500.0,0.00016438,2]
[335198536,1723973439563,-500.0,0.00016438,2]
[335198537,1723973439574,-500.0,0.00016438,2]
[335198538,1723973439583,-500.0,0.00016438,2]
[335198539,1723973439593,-500.0,0.00016438,2]
[335198540,1723973439603,-500.0,0.00016438,2]
[335198541,1723973439613,-500.0,0.00016438,2]
[335198542,1723973439622,-500.26,0.00016438,2]
[335198543,1723973439632,-500.0,0.00016438,2]
[335198544,1723973439641,-500.0,0.00016438,2]
[335198545,1723973439651,-500.0,0.00016438,2]
[335198546,1723973439662,-500.0,0.00016438,2]
[335198547,1723973439672,-500.0,0.00016438,2]
[335198548,1723973439682,-500.0,0.00016438,2]
[335198549,1723973439692,-972.48,0.00016438,2]
[335198550,1723973439701,-500.0,0.00016438,2]
[335198551,1723973439711,-980.78,0.00016438,2]
[335198552,1723973439721,-500.0,0.00016438,2]
[335198553,1723973439731,-500.0,0.00016438,2]
[335198554,1723973439740,-500.0,0.00016438,2]
[335198555,1723973439750,-500.0,0.00016438,2]
[335198556,1723973439759,-500.0,0.00016438,2]
[335198557,1723973439768,-708.13,0.00016438,2]
[335198558,1723973439778,-500.0,0.00016438,2]
[335198559,1723973439787,-500.0,0.00016438,2]
[335198560,1723973439797,-650.99,0.00016438,2]
[335198561,1723973439807,-500.0,0.00016438,2]
[335198562,1723973439816,-505.18868285,0.00016438,2]
[335198563,1723973439826,-500.0,0.00016438,2]
[335198564,1723973439835,-500.0,0.00016438,2]
[335198565,1723973439847,-500.0,0.00016438,2]
[335198566,1723973439857,-498.20948274,0.00016438,2]
[335198567,1723973439866,-500.0,0.00016438,2]
[335198568,1723973439878,-504.50626251,0.00016438,2]
[335198569,1723973439890,-500.0,0.00016438,2]
[335198570,1723973439900,-500.0,0.00016438,2]
[335198571,1723973439911,-500.0,0.00016438,2]
[335198572,1723973439921,-518.23084564,0.00016438,2]
[335198573,1723973439933,-500.0,0.00016438,2]
[335198574,1723973439943,-500.0,0.00016438,2]
[335198575,1723973439955,-500.0,0.00016438,2]
[335198576,1723973439966,-500.0,0.00016438,2]
[335198577,1723973439976,-518.86573632,0.00016438,2]
[335198578,1723973439986,-500.0,0.00016438,2]
[335198579,1723973439996,-500.0,0.00016438,2]
[335198580,1723973440006,-500.0,0.00016438,2]
[335198581,1723973440016,-500.0,0.00016438,2]
[335198582,1723973440027,-672.64,0.00016438,2]
[335198583,1723973440038,-500.0,0.00016438,2]
[335198584,1723973440050,-815.88,0.00016438,2]
[335198585,1723973440060,-500.0,0.00016438,2]
[335198586,1723973440069,-500.0,0.00016438,2]
[335198587,1723973440078,-622.82,0.00016438,2]
[335198588,1723973440088,-500.0,0.00016438,2]
[335198589,1723973440097,-500.0,0.00016438,2]
[335198590,1723973440107,-500.0,0.00016438,2]
[335198592,1723973440116,-500.0,0.00016438,2]
[335198593,1723973440126,-500.0,0.00016438,2]
[335198594,1723973440136,-500.0,0.00016438,2]
[335198595,1723973440145,-500.0,0.00016438,2]
[335198596,1723973440154,-737.99,0.00016438,2]
[335198597,1723973440163,-500.0,0.00016438,2]
[335198598,1723973440172,-500.0,0.00016438,2]
[335198599,1723973440182,-500.0,0.00016438,2]
[335198600,1723973440192,-576.61,0.00016438,2]
[335198601,1723973440202,-500.0,0.00016438,2]
[335198602,1723973440214,-505.89984748,0.00016438,2]
[335198603,1723973440225,-1194.06,0.00016438,2]
[335198604,1723973440237,-500.0,0.00016438,2]
[335198605,1723973440247,-587.16184139,0.00016438,2]
[335198606,1723973440260,-510.5141272,0.00016438,2]
[335198607,1723973440271,-500.0,0.00016438,2]
[335198608,1723973440282,-500.0,0.00016438,2]
[335198609,1723973440293,-500.0,0.00016438,2]
[335198611,1723973440303,-500.0,0.00016438,2]
[335198613,1723973440313,-500.0,0.00016438,2]
[335198615,1723973440323,-622.02,0.00016438,2]
[335198616,1723973440332,-506.51232328,0.00016438,2]
[335198617,1723973440341,-500.0,0.00016438,2]
[335198618,1723973440351,-500.0,0.00016438,2]
[335198619,1723973440361,-500.0,0.00016438,2]
[335198620,1723973440370,-500.0,0.00016438,2]
[335198621,1723973440381,-683.4,0.00016438,2]
[335198622,1723973440390,-500.0,0.00016438,2]
[335198623,1723973440400,-535.46,0.00016438,2]
[335198624,1723973440411,-500.0,0.00016438,2]
[335198625,1723973440422,-500.0,0.00016438,2]
[335198626,1723973440433,-605.26,0.00016438,2]
[335198627,1723973440444,-597.83,0.00016438,2]
[335198628,1723973440454,-504.35525262,0.00016438,2]
[335198629,1723973440465,-740.79,0.00016438,2]
[335198630,1723973440476,-977.22,0.00016438,2]
[335198631,1723973440487,-685.24,0.00016438,2]
[335198632,1723973440498,-500.0,0.00016438,2]
[335198633,1723973440509,-500.0,0.00016438,2]
[335198634,1723973440519,-500.0,0.00016438,2]
[335198635,1723973440530,-500.0,0.00016438,2]
[335198636,1723973440541,-729.04,0.00016438,2]
[335198637,1723973440551,-500.0,0.00016438,2]
[335198638,1723973440562,-500.0,0.00016438,2]
[335198639,1723973440573,-500.0,0.00016438,2]
[335198640,1723973440584,-500.0,0.00016438,2]
[335198641,1723973440594,-464.00191856,0.00016438,2]
[335198642,1723973440605,-500.0,0.00016438,2]
[335198643,1723973440616,-500.0,0.00016438,2]
[335198644,1723973440627,-376.41422012,0.00016438,2]
[335198646,1723973440640,-500.0,0.00016438,2]
[335198648,1723973440650,-500.0,0.00016438,2]
[335198650,1723973440661,-654.63,0.00016438,2]
[335198652,1723973440670,-500.0,0.00016438,2]
[335198654,1723973440680,-242.74466697,0.00016438,2]
[335198656,1723973440689,-500.0,0.00016438,2]
[335198658,1723973440699,-500.0,0.00016438,2]
[335198660,1723973440709,-500.0,0.00016438,2]
[335198662,1723973440719,-500.0,0.00016438,2]
[335198664,1723973440729,-500.0,0.00016438,2]
[335198666,1723973440742,-500.0,0.00016438,2]
[335198668,1723973440752,-501.06,0.00016438,2]
[335198670,1723973440764,-500.0,0.00016438,2]
[335198672,1723973440775,-500.0,0.00016438,2]
[335198674,1723973440785,-594.22,0.00016438,2]
[335198677,1723973440796,-500.0,0.00016438,2]
[335198679,1723973440806,-502.55370451,0.00016438,2]
[335198681,1723973440815,-500.0,0.00016438,2]
[335198683,1723973440826,-725.32,0.00016438,2]
[335198685,1723973440837,-500.0,0.00016438,2]
[335198687,1723973440851,-500.0,0.00016438,2]
[335198689,1723973440862,-500.0,0.00016438,2]
[335198691,1723973440872,-529.96242186,0.00016438,2]
[335198693,1723973440886,-523.30241497,0.00016438,2]
[335198695,1723973440897,-500.0,0.00016438,2]
[335198697,1723973440907,-500.0,0.00016438,2]
[335198700,1723973440919,-500.0,0.00016438,2]
[335198702,1723973440930,-500.0,0.00016438,2]
[335198704,1723973440941,-500.0,0.00016438,2]
[335198706,1723973440951,-508.91305967,0.00016438,2]
[335198708,1723973440962,-500.0,0.00016438,2]
[335198710,1723973440973,-500.0,0.00016438,2]
[335198712,1723973440985,-500.0,0.00016438,2]
[335198715,1723973440996,-596.34,0.00016438,2]
[335198717,1723973441005,-500.0,0.00016438,2]
[335198719,1723973441015,-500.0,0.00016438,2]
[335198721,1723973441026,-500.0,0.00016438,2]
[335198723,1723973441036,-500.0,0.00016438,2]
[335198725,1723973441046,-500.0,0.00016438,2]
[335198727,1723973441056,-632.45161308,0.00016438,2]
[335198729,1723973441066,-500.0,0.00016438,2]
[335198731,1723973441076,-500.0,0.00016438,2]
[335198733,1723973441087,-500.0,0.00016438,2]
[335198735,1723973441098,-500.0,0.00016438,2]
[335198737,1723973441108,-500.0,0.00016438,2]
[335198739,1723973441118,-548.22,0.00016438,2]
[335198741,1723973441128,-500.0,0.00016438,2]
[335198743,1723973441138,-500.0,0.00016438,2]
[335198745,1723973441148,-500.0,0.00016438,2]
[335198748,1723973441158,-500.0,0.00016438,2]
[335198750,1723973441169,-500.0,0.00016438,2]
[335198752,1723973441181,-500.0,0.00016438,2]
[335198754,1723973441191,-500.0,0.00016438,2]
[335198755,1723973441202,-296.38787265,0.00016438,2]
[335198757,1723973441212,-500.0,0.00016438,2]
[335198759,1723973441222,-500.0,0.00016438,2]
[335198761,1723973441233,-500.0,0.00016438,2]
[335198762,1723973441243,-500.0,0.00016438,2]
[335198763,1723973441254,-179.59121993,0.00016438,2]
[335198764,1723973441264,-834.48,0.00016438,2]
[335198765,1723973441274,-500.0,0.00016438,2]
[335198766,1723973441284,-586.44,0.00016438,2]
[335198767,1723973441294,-508.84744568,0.00016438,2]
[335198768,1723973441304,-505.7191295,0.00016438,2]
[335198769,1723973441315,-611.9,0.00016438,2]
[335198770,1723973441325,-505.68544623,0.00016438,2]
[335198771,1723973441334,-502.55481325,0.00016438,2]
[335198772,1723973441346,-500.0,0.00016438,2]
[335198773,1723973441357,-500.0,0.00016438,2]
[335198774,1723973441369,-982.6,0.00016438,2]
[335198775,1723973441379,-500.0,0.00016438,2]
[335198776,1723973441389,-500.0,0.00016438,2]
[335198777,1723973441400,-484.09248232,0.00016438,2]
[335198778,1723973441410,-1000.0,0.00016438,2]
[335198779,1723973441420,-549.04321915,0.00016438,2]
[335198780,1723973441429,-500.0,0.00016438,2]
[335198781,1723973441439,-506.49765776,0.00016438,2]
[335198782,1723973441450,-500.0,0.00016438,2]
[335198783,1723973441460,-560.14527885,0.00016438,2]
[335198784,1723973441471,-500.0,0.00016438,2]
[335198785,1723973441482,-500.0,0.00016438,2]
[335198786,1723973441492,-897.97,0.00016438,2]
[335198787,1723973441504,-500.0,0.00016438,2]
[335198788,1723973441514,-500.0,0.00016438,2]
[335198789,1723973441523,-553.69321237,0.00016438,2]
[335198790,1723973441532,-276.85208661,0.00016438,2]
[335198791,1723973441541,-500.0,0.00016438,2]
[335198792,1723973441551,-500.0,0.00016438,2]
[335198793,1723973441561,-500.0,0.00016438,2]
[335198794,1723973441571,-289.56560944,0.00016438,2]
[335198795,1723973441581,-500.0,0.00016438,2]
[335198796,1723973441592,-500.0,0.00016438,2]
[335198797,1723973441601,-500.0,0.00016438,2]
[335198798,1723973441613,-500.0,0.00016438,2]
[335198799,1723973441623,-507.81605481,0.00016438,2]
[335198800,1723973441635,-505.55103988,0.00016438,2]
[335198801,1723973441647,-459.05097986,0.00016438,2]
[335198802,1723973441658,-500.0,0.00016438,2]
[335198803,1723973441669,-500.0,0.00016438,2]
[335198804,1723973441679,-513.21989605,0.00016438,2]
[335198805,1723973441688,-500.0,0.00016438,2]
[335198806,1723973441699,-500.0,0.00016438,2]
[335198807,1723973441709,-505.90449131,0.00016438,2]
[335198808,1723973441718,-504.05644384,0.00016438,2]
[335198809,1723973441728,-500.0,0.00016438,2]
[335198810,1723973441738,-500.0,0.00016438,2]
[335198811,1723973441749,-500.0,0.00016438,2]
[335198812,1723973441760,-500.0,0.00016438,2]
[335198813,1723973441770,-515.16952851,0.00016438,2]
[335198814,1723973441781,-500.0,0.00016438,2]
[335198815,1723973441791,-500.0,0.00016438,2]
[335198816,1723973441801,-500.0,0.00016438,2]
[335198817,1723973441810,-500.0,0.00016438,2]
[335198818,1723973441820,-936.88,0.00016438,2]
[335198819,1723973441829,-500.0,0.00016438,2]
[335198820,1723973441840,-500.0,0.00016438,2]
[335198821,1723973441856,-500.0,0.00016438,2]
[335198822,1723973441868,-500.0,0.00016438,2]
[335198823,1723973441878,-500.0,0.00016438,2]
[335198824,1723973441889,-500.0,0.00016438,2]
[335198825,1723973441899,-1099.51,0.00016438,2]
[335198826,1723973441909,-500.0,0.00016438,2]
[335198827,1723973441921,-504.66007728,0.00016438,2]
[335198828,1723973441931,-500.0,0.00016438,2]
[335198829,1723973441941,-500.0,0.00016438,2]
[335198830,1723973441951,-500.0,0.00016438,2]
[335198831,1723973441961,-500.0,0.00016438,2]
[335198832,1723973441972,-500.0,0.00016438,2]
[335198833,1723973441982,-500.0,0.00016438,2]
[335198834,1723973441992,-500.0,0.00016438,2]
[335198835,1723973442001,-500.0,0.00016438,2]
[335198836,1723973442011,-980.42,0.00016438,2]
[335198837,1723973442020,-500.0,0.00016438,2]
[335198838,1723973442030,-1336.64,0.00016438,2]
[335198839,1723973442040,-500.0,0.00016438,2]
[335198840,1723973442049,-500.0,0.00016438,2]
[335198841,1723973442059,-195.19548428,0.00016438,2]
[335198842,1723973442068,-508.39620964,0.00016438,2]
[335198843,1723973442078,-501.96568355,0.00016438,2]
[335198844,1723973442088,-3765.02,0.00016438,2]
[335198845,1723973442097,-500.0,0.00016438,2]
[335198846,1723973442107,-500.0,0.00016438,2]
[335198847,1723973442117,-500.0,0.00016438,2]
[335198848,1723973442126,-500.0,0.00016438,2]
[335198849,1723973442136,-454.33912668,0.00016438,2]
[335198850,1723973442146,-915.34,0.00016438,2]
[335198851,1723973442155,-592.2,0.00016438,2]
[335198852,1723973442165,-1068.53,0.00016438,2]
[335198853,1723973442174,-758.62,0.00016438,2]
[335198854,1723973442184,-507.65850958,0.00016438,2]
[335198855,1723973442194,-500.0,0.00016438,2]
[335198856,1723973442204,-603.87,0.00016438,2]
[335198857,1723973442214,-500.0,0.00016438,2]
[335198858,1723973442223,-500.0,0.00016438,2]
[335198859,1723973442233,-500.0,0.00016438,2]
[335198860,1723973442242,-883.58,0.00016438,2]
[335198861,1723973442252,-500.0,0.00016438,2]
[335198862,1723973442262,-565.50512077,0.00016438,2]
[335198863,1723973442271,-506.64087137,0.00016438,2]
[335198864,1723973442281,-500.0,0.00016438,2]
[335198865,1723973442290,-3068.37,0.00016438,2]
[335198866,1723973442300,-645.52,0.00016438,2]
[335198867,1723973442310,-500.0,0.00016438,2]
[335198868,1723973442320,-780.44,0.00016438,2]
[335198869,1723973442330,-500.0,0.00016438,2]
[335198870,1723973442342,-500.0,0.00016438,2]
[335198871,1723973442353,-2131.01,0.00016438,2]
[335198872,1723973442363,-500.0,0.00016438,2]
[335198873,1723973442374,-924.61,0.00016438,2]
[335198874,1723973442384,-500.0,0.00016438,2]
[335198875,1723973442394,-500.0,0.00016438,2]
[335198876,1723973442404,-879.44,0.00016438,2]
[335198877,1723973442415,-502.45859411,0.00016438,2]
[335198878,1723973442425,-500.0,0.00016438,2]
[335198879,1723973442437,-500.0,0.00016438,2]
[335198880,1723973442447,-500.0,0.00016438,2]
[335198881,1723973442459,-500.0,0.00016438,2]
[335198882,1723973442471,-910.62,0.00016438,2]
[335198883,1723973442482,-500.0,0.00016438,2]
[335198884,1723973442492,-1133.73,0.00016438,2]
[335198885,1723973442502,-500.0,0.00016438,2]
[335198886,1723973442513,-500.0,0.00016438,2]
[335198887,1723973442524,-500.0,0.00016438,2]
[335198888,1723973442535,-1450.96,0.00016438,2]
[335198889,1723973442544,-1071.31,0.00016438,2]
[335198890,1723973442555,-500.0,0.00016438,2]
[335198891,1723973442566,-505.51322599,0.00016438,2]
[335198892,1723973442578,-500.0,0.00016438,2]
[335198893,1723973442590,-500.0,0.00016438,2]
[335198894,1723973442600,-500.0,0.00016438,2]
[335198895,1723973442611,-500.0,0.00016438,2]
[335198896,1723973442620,-500.0,0.00016438,2]
[335198897,1723973442631,-873.26,0.00016438,2]
[335198898,1723973442641,-500.0,0.00016438,2]
[335198899,1723973442651,-321.84816398,0.00016438,2]
[335198900,1723973442663,-500.0,0.00016438,2]
[335198901,1723973442673,-500.0,0.00016438,2]
[335198902,1723973442683,-502.74047752,0.00016438,2]
[335198903,1723973442695,-500.0,0.00016438,2]
[335198904,1723973442705,-500.0,0.00016438,2]
[335198905,1723973442715,-500.0,0.00016438,2]
[335198906,1723973442726,-500.0,0.00016438,2]
[335198907,1723973442737,-500.0,0.00016438,2]
[335198908,1723973442868,-501.7969771,0.00016438,2]
[335198909,1723973442879,-500.0,0.00016438,2]
[335198910,1723973442889,-500.0,0.00016438,2]
[335198911,1723973442899,-671.23,0.00016438,2]
[335198912,1723973442911,-500.0,0.00016438,2]
[335198913,1723973442922,-502.35481281,0.00016438,2]
[335198914,1723973442934,-500.0,0.00016438,2]
[335198915,1723973442945,-500.0,0.00016438,2]
[335198916,1723973442955,-500.0,0.00016438,2]
[335198917,1723973442967,-500.0,0.00016438,2]
[335198918,1723973442977,-500.0,0.00016438,2]
[335198919,1723973442989,-848.13,0.00016438,2]
[335198920,1723973443000,-500.0,0.00016438,2]
[335198921,1723973443010,-500.0,0.00016438,2]
[335198922,1723973443022,-500.0,0.00016438,2]
[335198923,1723973443035,-500.0,0.00016438,2]
[335198924,1723973443046,-500.0,0.00016438,2]
[335198925,1723973443055,-500.0,0.00016438,2]
[335198926,1723973443065,-967.24,0.00016438,2]
[335198927,1723973443074,-970.59,0.00016438,2]
[335198928,1723973443083,-500.0,0.00016438,2]
[335198929,1723973443093,-500.0,0.00016438,2]
[335198930,1723973443102,-776.38,0.00016438,2]
[335198931,1723973443114,-500.0,0.00016438,2]
[335198932,1723973443125,-683.26,0.00016438,2]
[335198933,1723973443135,-500.0,0.00016438,2]
[335198934,1723973443144,-500.0,0.00016438,2]
[335198935,1723973443154,-500.0,0.00016438,2]
[335198936,1723973443164,-500.0,0.00016438,2]
[335198937,1723973443173,-500.0,0.00016438,2]
[335198938,1723973443183,-500.0,0.00016438,2]
[335198939,1723973443193,-5174.52,0.00016438,2]
[335198940,1723973443203,-500.0,0.00016438,2]
[335198941,1723973443213,-500.0,0.00016438,2]
[335198943,1723973443223,-751.95,0.00016438,2]
[335198945,1723973443234,-500.0,0.00016438,2]
[335198946,1723973443245,-2030.8,0.00016438,2]
[335198947,1723973443255,-500.0,0.00016438,2]
[335198948,1723973443265,-637.35,0.00016438,2]
[335198949,1723973443274,-500.0,0.00016438,2]
[335198950,1723973443283,-500.0,0.00016438,2]
[335198951,1723973443294,-512.74,0.00016438,2]
[335198952,1723973443303,-500.0,0.00016438,2]
[335198953,1723973443313,-511.64450692,0.00016438,2]
[335198954,1723973443323,-500.0,0.00016438,2]
[335198955,1723973443332,-1912.96,0.00016438,2]
[335198956,1723973443342,-500.0,0.00016438,2]
[335198957,1723973443352,-833.06,0.00016438,2]
[335198958,1723973443361,-500.0,0.00016438,2]
[335198959,1723973443372,-500.0,0.00016438,2]
[335198960,1723973443383,-500.0,0.00016438,2]
[335198961,1723973443392,-500.0,0.00016438,2]
[335198962,1723973443402,-500.0,0.00016438,2]
[335198963,1723973443412,-500.0,0.00016438,2]
[335198964,1723973443421,-721.55,0.00016438,2]
[335198966,1723973443430,-500.0,0.00016438,2]
[335198968,1723973443440,-500.0,0.00016438,2]
[335198969,1723973443451,-603.8,0.00016438,2]
[335198970,1723973443463,-500.0,0.00016438,2]
[335198971,1723973443473,-667.14,0.00016438,2]
[335198972,1723973443485,-500.0,0.00016438,2]
[335198973,1723973443496,-885.41,0.00016438,2]
[335198974,1723973443507,-500.0,0.00016438,2]
[335198975,1723973443518,-567.88,0.00016438,2]
[335198976,1723973443530,-500.0,0.00016438,2]
[335198977,1723973443540,-716.42,0.00016438,2]
[335198978,1723973443550,-598.55,0.00016438,2]
[335198979,1723973443560,-504.41727663,0.00016438,2]
[335198980,1723973443572,-500.0,0.00016438,2]
[335198981,1723973443581,-500.0,0.00016438,2]
[335198982,1723973443591,-500.0,0.00016438,2]
[335198983,1723973443601,-661.6,0.00016438,2]
[335198984,1723973443612,-543.67,0.00016438,2]
[335198985,1723973443621,-571.65,0.00016438,2]
[335198986,1723973443631,-500.0,0.00016438,2]
[335198988,1723973443640,-501.05059056,0.00016438,2]
[335198990,1723973443650,-500.0,0.00016438,2]
[335198991,1723973443659,-500.0,0.00016438,2]
[335198992,1723973443669,-1019.23,0.00016438,2]
[335198993,1723973443679,-500.0,0.00016438,2]
[335198994,1723973443688,-500.0,0.00016438,2]
[335198995,1723973443698,-674.11,0.00016438,2]
[335198996,1723973443707,-528.09,0.00016438,2]
[335198997,1723973443717,-500.0,0.00016438,2]
[335198998,1723973443728,-845.2,0.00016438,2]
[335198999,1723973443737,-500.0,0.00016438,2]
[335199000,1723973443748,-666.37,0.00016438,2]
[335199001,1723973443758,-1043.56,0.00016438,2]
[335199002,1723973443769,-500.0,0.00016438,2]
[335199003,1723973443780,-500.0,0.00016438,2]
[335199004,1723973443792,-500.0,0.00016438,2]
[335199005,1723973443804,-528.20501556,0.00016438,2]
[335199006,1723973443815,-584.5,0.00016438,2]
[335199007,1723973443826,-500.0,0.00016438,2]
[335199008,1723973443835,-1490.05,0.00016438,2]
[335199009,1723973443848,-500.0,0.00016438,2]
[335199010,1723973443857,-500.0,0.00016438,2]
[335199011,1723973443867,-500.0,0.00016438,2]
[335199012,1723973443878,-500.0,0.00016438,2]
[335199013,1723973443887,-500.0,0.00016438,2]
[335199014,1723973443897,-500.0,0.00016438,2]
[335199015,1723973443908,-8476.9,0.00016438,2]
[335199016,1723973443919,-8476.9,0.00016438,2]
[335199017,1723973443933,-8476.9,0.00016438,2]
[335199018,1723973443943,-8476.9,0.00016438,2]
[335199019,1723973443953,-536.03048308,0.00016438,2]
[335199020,1723973443965,-8476.9,0.00016438,2]
[335199021,1723973443977,-500.0,0.00016438,2]
[335199022,1723973443988,-8476.9,0.00016438,2]
[335199023,1723973443998,-8476.9,0.00016438,2]
[335199024,1723973444008,-5886.09612929,0.00016438,2]
[335199025,1723973444033,-2590.80387071,0.00016438,2]
[335199026,1723973444043,-8476.9,0.00016438,2]
[335199027,1723973444053,-500.0,0.00016438,2]
[335199028,1723973444062,-8097.39235562,0.00016438,2]
[335199029,1723973444075,-379.50764438,0.00016438,2]
[335199030,1723973444087,-500.0,0.00016438,2]
[335199031,1723973444098,-500.0,0.00016438,2]
[335199032,1723973444109,-500.0,0.00016438,2]
[335199033,1723973444120,-500.0,0.00016438,2]
[335199034,1723973444132,-551.95,0.00016438,2]
[335199035,1723973444142,-237.88570543,0.00016438,2]
[335199036,1723973444161,-288.50492,0.00016438,2]
[335199037,1723973444173,-18.81937457,0.00016438,2]
[335199038,1723973444183,-512.92510191,0.00016438,2]
[335199039,1723973444192,-504.00846411,0.00016438,2]
[335199040,1723973444202,-500.0,0.00016438,2]
[335199041,1723973444213,-573.79733495,0.00016438,2]
[335199042,1723973444223,-577.2536743,0.00016438,2]
[335199043,1723973444234,-500.0,0.00016438,2]
[335199044,1723973444245,-500.0,0.00016438,2]
[335199045,1723973444255,-500.0,0.00016438,2]
[335199046,1723973444265,-594.37,0.00016438,2]
[335199047,1723973444276,-500.0,0.00016438,2]
[335199048,1723973444286,-500.0,0.00016438,2]
[335199049,1723973444298,-500.0,0.00016438,2]
[335199050,1723973444309,-500.0,0.00016438,2]
[335199051,1723973444321,-500.0,0.00016438,2]
[335199052,1723973444333,-85.48078493,0.00016438,2]
[335199054,1723973444604,-414.51921507,0.00016438,2]
[335199055,1723973444614,-634.85,0.00016438,2]
[335199056,1723973444623,-500.0,0.00016438,2]
[335199057,1723973444633,-654.34,0.00016438,2]
[335199058,1723973444643,-500.0,0.00016438,2]
[335199059,1723973444652,-711.29,0.00016438,2]
[335199060,1723973444662,-1032.70074975,0.00016611,2]
[335199061,1723973444672,-284.11638102,0.000167,2]
[335199062,1723973444685,-215.88361898,0.000167,2]
[335199063,1723973444694,-589.17209979,0.000167,2]
[335199064,1723973444704,-500.0,0.000167,2]
[335199065,1723973444713,-13560.72154366,0.000167,2]
[335199066,1723973445304,-500.0,0.00016438,2]
[335199067,1723973445314,-23327.51757384,0.000167,2]
[335199068,1723973445323,-8476.9,0.00016701,2]
[335199069,1723973445333,-8476.9,0.00016701,2]
[335199070,1723973445342,-36888.2391175,0.00016702,2]
[335199071,1723973445351,-500.0,0.0001671,2]
[335199072,1723973445361,-515.79324204,0.0001671,2]
[335199073,1723973445370,-8476.9,0.0001671,2]
[335199074,1723973445379,-500.0,0.00016711,2]
[335199075,1723973445398,-500.0,0.00016711,2]
[335199076,1723973445408,-500.0,0.00016711,2]
[335199077,1723973445417,-500.0,0.00016711,2]
[335199078,1723973445427,-8476.9,0.00016711,2]
[335199079,1723973445436,-8476.9,0.00016711,2]
[335199080,1723973445445,-8476.9,0.00016711,2]
[335199081,1723973445454,-8476.9,0.00016711,2]
[335199082,1723973445464,-500.0,0.00016711,2]
[335199083,1723973445474,-417.33335301,0.00016711,2]
[335199084,1723973445483,-500.0,0.00016712,2]
[335199085,1723973445492,-500.0,0.00016712,2]
[335199086,1723973445502,-332.3463674,0.00016712,2]
[335199087,1723973445511,-556.12,0.00016712,2]
[335199088,1723973445522,-500.0,0.00016712,2]
[335199089,1723973445531,-500.0,0.00016712,2]
[335199090,1723973445541,-200.0,0.00016712,2]
[335199091,1723973445551,-500.0,0.00016712,2]
[335199092,1723973445560,-500.0,0.00016712,2]
[335199093,1723973445570,-500.0,0.00016712,2]
[335199094,1723973445581,-500.0,0.00016712,2]
[335199095,1723973445590,-500.0,0.00016712,2]
[335199096,1723973445601,-500.0,0.00016712,2]
[335199097,1723973445611,-505.81,0.00016712,2]
[335199098,1723973445621,-500.0,0.00016712,2]
[335199099,1723973445631,-500.0,0.00016712,2]
[335199100,1723973445641,-510.62,0.00016712,2]